Workbook

Sheet Sheet1
A1: Ugedag | B1: Dato | C1: Start tid | D1: Slut tid | E1: Pauser | F1: timer i alt | G1: dag timer | H1: Aften timer | I1: Nat timer | J1: Overarbejde 1 | K1: Overarbejde 2 | M1: Lønperiode: | O1: okt/nov 2023
A2: =TEXT(WEEKDAY(B2,1),"dddd") -> fredag | B2: 2023-10-20 | C2: 0.3333333333 | D2: 0.6201388889 | E2: =IF(C2="","",T!$D$5) -> 0.02083333333 | F2: =IF(C2="","",D2-C2+(C2>D2)) -> 0.2868055556 | G2: =IF(C2<>"",ColTime(C2,D2,T!$D$2,T!$F$2)-E2,"") -> 0.2659722222 | H2: =IF(C2<>"",ColTime(C2,D2,T!$D$3,T!$F$3),"") -> 0 | I2: =IF(C2<>"",ColTime(C2,D2,T!$D$4,T!$F$4),"") -> 0 | J2: =IF(C2="","",IF(F2>T!$D$9,T!$E$8, IF(F2>T!$D$10, F2-T!$D$10, 0))) -> 0 | K2: =IF(C2="","",IF(F2>T!$D$9, F2-T!$D$9, 0)) -> 0
A3: =TEXT(WEEKDAY(B3,1),"dddd") -> lørdag | B3: =B2+1 -> 2023-10-21 | E3: =IF(C3="","",T!$D$5) ->  | G3: =IF(C3<>"",ColTime(C3,D3,T!$D$2,T!$F$2)-E3,"") ->  | H3: =IF(C3<>"",ColTime(C3,D3,T!$D$3,T!$F$3),"") ->  | I3: =IF(C3<>"",ColTime(C3,D3,T!$D$4,T!$F$4),"") ->  | J3: =IF(C3="","",IF(F3>T!$D$9,T!$E$8, IF(F3>T!$D$10, F3-T!$D$10, 0))) ->  | K3: =IF(C3="","",IF(F3>T!$D$9, F3-T!$D$9, 0)) ->  | M3: Arbejdstimer | O3: =F34 -> 90.96666667 | Q3: sats kr. | S3: 149.69 | T3: =+O3*S3 -> 13616.80033
A4: søndag | B4: 2023-10-22 | E4: =IF(C4="","",T!$D$5) ->  | G4: =IF(C4<>"",ColTime(C4,D4,T!$D$2,T!$F$2)-E4,"") ->  | H4: =IF(C4<>"",ColTime(C4,D4,T!$D$3,T!$F$3),"") ->  | I4: =IF(C4<>"",ColTime(C4,D4,T!$D$4,T!$F$4),"") ->  | J4: =IF(C4="","",IF(F4>T!$D$9,T!$E$8, IF(F4>T!$D$10, F4-T!$D$10, 0))) ->  | K4: =IF(C4="","",IF(F4>T!$D$9, F4-T!$D$9, 0)) ->  | M4: Aften tillægstimer | O4: =H34 -> 20.76666667 | Q4: sats kr. | S4: 29.4 | T4: =+O4*S4 -> 610.54
A5: mandag | B5: 2023-10-23 | C5: 0.4375 | D5: 0.7708333333 | E5: =IF(C5="","",T!$D$5) -> 0.02083333333 | F5: 0.3333333333 | G5: =IF(C5<>"",ColTime(C5,D5,T!$D$2,T!$F$2)-E5,"") -> 0.2916666667 | H5: =IF(C5<>"",ColTime(C5,D5,T!$D$3,T!$F$3),"") -> 0.02083333333 | I5: =IF(C5<>"",ColTime(C5,D5,T!$D$4,T!$F$4),"") -> 0 | J5: =IF(C5="","",IF(F5>T!$D$9,T!$E$8, IF(F5>T!$D$10, F5-T!$D$10, 0))) -> 0.02083333333 | K5: =IF(C5="","",IF(F5>T!$D$9, F5-T!$D$9, 0)) -> 0 | M5: Nat tillægstimer | O5: =I34 -> 4.816666667 | Q5: sats kr. | S5: 47.95 | T5: =+O5*S5 -> 230.9591667
A6: tirsdag | B6: 2023-10-24 | C6: 0.4375 | D6: 0.8152777778 | E6: =IF(C6="","",T!$D$5) -> 0.02083333333 | F6: 0.3777777778 | G6: =IF(C6<>"",ColTime(C6,D6,T!$D$2,T!$F$2)-E6,"") -> 0.2916666667 | H6: =IF(C6<>"",ColTime(C6,D6,T!$D$3,T!$F$3),"") -> 0.06527777778 | I6: =IF(C6<>"",ColTime(C6,D6,T!$D$4,T!$F$4),"") -> 0 | J6: =IF(C6="","",IF(F6>T!$D$9,T!$E$8, IF(F6>T!$D$10, F6-T!$D$10, 0))) -> 0.06527777778 | K6: =IF(C6="","",IF(F6>T!$D$9, F6-T!$D$9, 0)) -> 0 | M6: Overarbejde 1 | O6: =J34 -> 10.91666667 | Q6: sats kr. | S6: 44.05 | T6: =+O6*S6 -> 480.8791667
A7: onsdag | B7: 2023-10-25 | C7: 0.5416666667 | D7: 0.875 | E7: =IF(C7="","",T!$D$5) -> 0.02083333333 | F7: 0.3333333333 | G7: =IF(C7<>"",ColTime(C7,D7,T!$D$2,T!$F$2)-E7,"") -> 0.1875 | H7: =IF(C7<>"",ColTime(C7,D7,T!$D$3,T!$F$3),"") -> 0.125 | I7: =IF(C7<>"",ColTime(C7,D7,T!$D$4,T!$F$4),"") -> 0 | J7: =IF(C7="","",IF(F7>T!$D$9,T!$E$8, IF(F7>T!$D$10, F7-T!$D$10, 0))) -> 0.02083333333 | K7: =IF(C7="","",IF(F7>T!$D$9, F7-T!$D$9, 0)) -> 0 | M7: Overarbejde 2 | O7: =K34 -> 5.816666667 | Q7: sats kr. | S7: 70.3 | T7: =+O7*S7 -> 408.9116667
A8: torsdag | B8: 2023-10-26 | C8: 0.5 | D8: 0.8486111111 | E8: =IF(C8="","",T!$D$5) -> 0.02083333333 | F8: 0.3486111111 | G8: =IF(C8<>"",ColTime(C8,D8,T!$D$2,T!$F$2)-E8,"") -> 0.2291666667 | H8: =IF(C8<>"",ColTime(C8,D8,T!$D$3,T!$F$3),"") -> 0.09861111111 | I8: =IF(C8<>"",ColTime(C8,D8,T!$D$4,T!$F$4),"") -> 0 | J8: =IF(C8="","",IF(F8>T!$D$9,T!$E$8, IF(F8>T!$D$10, F8-T!$D$10, 0))) -> 0.03611111111 | K8: =IF(C8="","",IF(F8>T!$D$9, F8-T!$D$9, 0)) -> 0 | T8: =SUM(T3:V7) -> 15348.09033
A9: fredag | B9: 2023-10-27 | C9: 0.5208333333 | D9: 0.8270833333 | E9: =IF(C9="","",T!$D$5) -> 0.02083333333 | F9: 0.30625 | G9: =IF(C9<>"",ColTime(C9,D9,T!$D$2,T!$F$2)-E9,"") -> 0.2083333333 | H9: =IF(C9<>"",ColTime(C9,D9,T!$D$3,T!$F$3),"") -> 0.07708333333 | I9: =IF(C9<>"",ColTime(C9,D9,T!$D$4,T!$F$4),"") -> 0 | J9: =IF(C9="","",IF(F9>T!$D$9,T!$E$8, IF(F9>T!$D$10, F9-T!$D$10, 0))) -> 0 | K9: =IF(C9="","",IF(F9>T!$D$9, F9-T!$D$9, 0)) -> 0 | M9: - ATP-bidrag, lønmodtager | S9: 94.65
A10: lørdag | B10: 2023-10-28 | E10: =IF(C10="","",T!$D$5) ->  | G10: =IF(C10<>"",ColTime(C10,D10,T!$D$2,T!$F$2)-E10,"") ->  | H10: =IF(C10<>"",ColTime(C10,D10,T!$D$3,T!$F$3),"") ->  | I10: =IF(C10<>"",ColTime(C10,D10,T!$D$4,T!$F$4),"") ->  | J10: =IF(C10="","",IF(F10>T!$D$9,T!$E$8, IF(F10>T!$D$10, F10-T!$D$10, 0))) ->  | K10: =IF(C10="","",IF(F10>T!$D$9, F10-T!$D$9, 0)) -> 
A11: søndag | B11: 2023-10-29 | E11: =IF(C11="","",T!$D$5) ->  | G11: =IF(C11<>"",ColTime(C11,D11,T!$D$2,T!$F$2)-E11,"") ->  | H11: =IF(C11<>"",ColTime(C11,D11,T!$D$3,T!$F$3),"") ->  | I11: =IF(C11<>"",ColTime(C11,D11,T!$D$4,T!$F$4),"") ->  | J11: =IF(C11="","",IF(F11>T!$D$9,T!$E$8, IF(F11>T!$D$10, F11-T!$D$10, 0))) ->  | K11: =IF(C11="","",IF(F11>T!$D$9, F11-T!$D$9, 0)) ->  | M11: AM-bidragsgrundlag | T11: =IF(T8-S9<0,0,T8-S9) -> 15253.44033
A12: mandag | B12: 2023-10-30 | C12: 0.375 | D12: 0.76875 | E12: =IF(C12="","",T!$D$5) -> 0.02083333333 | F12: 0.39375 | G12: =IF(C12<>"",ColTime(C12,D12,T!$D$2,T!$F$2)-E12,"") -> 0.3541666667 | H12: =IF(C12<>"",ColTime(C12,D12,T!$D$3,T!$F$3),"") -> 0.01875 | I12: =IF(C12<>"",ColTime(C12,D12,T!$D$4,T!$F$4),"") -> 0 | J12: =IF(C12="","",IF(F12>T!$D$9,T!$E$8, IF(F12>T!$D$10, F12-T!$D$10, 0))) -> 0.08125 | K12: =IF(C12="","",IF(F12>T!$D$9, F12-T!$D$9, 0)) -> 0
A13: tirsdag | B13: 2023-10-31 | C13: 0.5 | D13: 0.9923611111 | E13: =IF(C13="","",T!$D$5) -> 0.02083333333 | F13: 0.4923611111 | G13: =IF(C13<>"",ColTime(C13,D13,T!$D$2,T!$F$2)-E13,"") -> 0.2291666667 | H13: =IF(C13<>"",ColTime(C13,D13,T!$D$3,T!$F$3),"") -> 0.1666666667 | I13: =IF(C13<>"",ColTime(C13,D13,T!$D$4,T!$F$4),"") -> 0.07569444444 | J13: =IF(C13="","",IF(F13>T!$D$9,T!$E$8, IF(F13>T!$D$10, F13-T!$D$10, 0))) -> 0.08333333333 | K13: =IF(C13="","",IF(F13>T!$D$9, F13-T!$D$9, 0)) -> 0.09652777778 | M13: 0.08 | N13: AM-bidrag | S13: =-ROUND(T11*0.08,0) -> -1220
A14: onsdag | B14: 2023-11-01 | C14: 0.5 | D14: 0.8763888889 | E14: =IF(C14="","",T!$D$5) -> 0.02083333333 | F14: 0.3763888889 | G14: =IF(C14<>"",ColTime(C14,D14,T!$D$2,T!$F$2)-E14,"") -> 0.2291666667 | H14: =IF(C14<>"",ColTime(C14,D14,T!$D$3,T!$F$3),"") -> 0.1263888889 | I14: =IF(C14<>"",ColTime(C14,D14,T!$D$4,T!$F$4),"") -> 0 | J14: =IF(C14="","",IF(F14>T!$D$9,T!$E$8, IF(F14>T!$D$10, F14-T!$D$10, 0))) -> 0.06388888889 | K14: =IF(C14="","",IF(F14>T!$D$9, F14-T!$D$9, 0)) -> 0
A15: torsdag | B15: 2023-11-02 | E15: =IF(C15="","",T!$D$5) ->  | G15: =IF(C15<>"",ColTime(C15,D15,T!$D$2,T!$F$2)-E15,"") ->  | H15: =IF(C15<>"",ColTime(C15,D15,T!$D$3,T!$F$3),"") ->  | I15: =IF(C15<>"",ColTime(C15,D15,T!$D$4,T!$F$4),"") ->  | J15: =IF(C15="","",IF(F15>T!$D$9,T!$E$8, IF(F15>T!$D$10, F15-T!$D$10, 0))) ->  | K15: =IF(C15="","",IF(F15>T!$D$9, F15-T!$D$9, 0)) ->  | M15: A-indkomst | T15: =+T11+S13 -> 14033.44033
A16: fredag | B16: 2023-11-03 | C16: 0.5 | D16: 0.04166666667 | E16: =IF(C16="","",T!$D$5) -> 0.02083333333 | F16: =IF(C16="","",D16-C16+(C16>D16)) -> 0.5416666667 | G16: =IF(C16<>"",ColTime(C16,D16,T!$D$2,T!$F$2)-E16,"") -> 0.2291666667 | H16: =IF(C16<>"",ColTime(C16,D16,T!$D$3,T!$F$3),"") -> 0.1666666667 | I16: =IF(C16<>"",ColTime(C16,D16,T!$D$4,T!$F$4),"") -> 0.125 | J16: =IF(C16="","",IF(F16>T!$D$9,T!$E$8, IF(F16>T!$D$10, F16-T!$D$10, 0))) -> 0.08333333333 | K16: =IF(C16="","",IF(F16>T!$D$9, F16-T!$D$9, 0)) -> 0.1458333333 | T16: =(IF(T15<=O17,T15,O17)+IF(T15>=0,0,T15)) -> 7786
A17: lørdag | B17: 2023-11-04 | E17: =IF(C17="","",T!$D$5) ->  | F17: =IF(C17="","",D17-C17+(C17>D17)) ->  | G17: =IF(C17<>"",ColTime(C17,D17,T!$D$2,T!$F$2)-E17,"") ->  | H17: =IF(C17<>"",ColTime(C17,D17,T!$D$3,T!$F$3),"") ->  | I17: =IF(C17<>"",ColTime(C17,D17,T!$D$4,T!$F$4),"") ->  | J17: =IF(C17="","",IF(F17>T!$D$9,T!$E$8, IF(F17>T!$D$10, F17-T!$D$10, 0))) ->  | K17: =IF(C17="","",IF(F17>T!$D$9, F17-T!$D$9, 0)) ->  | M17: Benyttet skattefradrag | O17: 7786
A18: søndag | B18: 2023-11-05 | E18: =IF(C18="","",T!$D$5) ->  | G18: =IF(C18<>"",ColTime(C18,D18,T!$D$2,T!$F$2)-E18,"") ->  | H18: =IF(C18<>"",ColTime(C18,D18,T!$D$3,T!$F$3),"") ->  | I18: =IF(C18<>"",ColTime(C18,D18,T!$D$4,T!$F$4),"") ->  | J18: =IF(C18="","",IF(F18>T!$D$9,T!$E$8, IF(F18>T!$D$10, F18-T!$D$10, 0))) ->  | K18: =IF(C18="","",IF(F18>T!$D$9, F18-T!$D$9, 0)) -> 
A19: mandag | B19: 2023-11-06 | E19: =IF(C19="","",T!$D$5) ->  | G19: =IF(C19<>"",ColTime(C19,D19,T!$D$2,T!$F$2)-E19,"") ->  | H19: =IF(C19<>"",ColTime(C19,D19,T!$D$3,T!$F$3),"") ->  | I19: =IF(C19<>"",ColTime(C19,D19,T!$D$4,T!$F$4),"") ->  | J19: =IF(C19="","",IF(F19>T!$D$9,T!$E$8, IF(F19>T!$D$10, F19-T!$D$10, 0))) ->  | K19: =IF(C19="","",IF(F19>T!$D$9, F19-T!$D$9, 0)) ->  | M19: 0.38 | N19: A-skat | S19: =IF(T15<=0,0,-ROUND((T15-T16)*M19,0)) -> -2374
A20: tirsdag | B20: 2023-11-07 | E20: =IF(C20="","",T!$D$5) ->  | G20: =IF(C20<>"",ColTime(C20,D20,T!$D$2,T!$F$2)-E20,"") ->  | H20: =IF(C20<>"",ColTime(C20,D20,T!$D$3,T!$F$3),"") ->  | I20: =IF(C20<>"",ColTime(C20,D20,T!$D$4,T!$F$4),"") ->  | J20: =IF(C20="","",IF(F20>T!$D$9,T!$E$8, IF(F20>T!$D$10, F20-T!$D$10, 0))) ->  | K20: =IF(C20="","",IF(F20>T!$D$9, F20-T!$D$9, 0)) -> 
A21: onsdag | B21: 2023-11-08 | E21: =IF(C21="","",T!$D$5) ->  | G21: =IF(C21<>"",ColTime(C21,D21,T!$D$2,T!$F$2)-E21,"") ->  | H21: =IF(C21<>"",ColTime(C21,D21,T!$D$3,T!$F$3),"") ->  | I21: =IF(C21<>"",ColTime(C21,D21,T!$D$4,T!$F$4),"") ->  | J21: =IF(C21="","",IF(F21>T!$D$9,T!$E$8, IF(F21>T!$D$10, F21-T!$D$10, 0))) ->  | K21: =IF(C21="","",IF(F21>T!$D$9, F21-T!$D$9, 0)) ->  | M21: Løn til udbetaling | T21: =+T15+S19 -> 11659.44033
A22: torsdag | B22: 2023-11-09 | E22: =IF(C22="","",T!$D$5) ->  | G22: =IF(C22<>"",ColTime(C22,D22,T!$D$2,T!$F$2)-E22,"") ->  | H22: =IF(C22<>"",ColTime(C22,D22,T!$D$3,T!$F$3),"") ->  | I22: =IF(C22<>"",ColTime(C22,D22,T!$D$4,T!$F$4),"") ->  | J22: =IF(C22="","",IF(F22>T!$D$9,T!$E$8, IF(F22>T!$D$10, F22-T!$D$10, 0))) ->  | K22: =IF(C22="","",IF(F22>T!$D$9, F22-T!$D$9, 0)) -> 
A23: fredag | B23: 2023-11-10 | E23: =IF(C23="","",T!$D$5) ->  | G23: =IF(C23<>"",ColTime(C23,D23,T!$D$2,T!$F$2)-E23,"") ->  | H23: =IF(C23<>"",ColTime(C23,D23,T!$D$3,T!$F$3),"") ->  | I23: =IF(C23<>"",ColTime(C23,D23,T!$D$4,T!$F$4),"") ->  | J23: =IF(C23="","",IF(F23>T!$D$9,T!$E$8, IF(F23>T!$D$10, F23-T!$D$10, 0))) ->  | K23: =IF(C23="","",IF(F23>T!$D$9, F23-T!$D$9, 0)) ->  | M23: Feriepenge | O23: =+(+T8)*0.125 -> 1918.511292
A24: lørdag | B24: 2023-11-11 | E24: =IF(C24="","",T!$D$5) ->  | G24: =IF(C24<>"",ColTime(C24,D24,T!$D$2,T!$F$2)-E24,"") ->  | H24: =IF(C24<>"",ColTime(C24,D24,T!$D$3,T!$F$3),"") ->  | I24: =IF(C24<>"",ColTime(C24,D24,T!$D$4,T!$F$4),"") ->  | J24: =IF(C24="","",IF(F24>T!$D$9,T!$E$8, IF(F24>T!$D$10, F24-T!$D$10, 0))) ->  | K24: =IF(C24="","",IF(F24>T!$D$9, F24-T!$D$9, 0)) ->  | M24: =+M13 -> 0.08 | N24: AM-bidrag | O24: =ROUND(-O23*M24,0) -> -153
A25: søndag | B25: 2023-11-12 | E25: =IF(C25="","",T!$D$5) ->  | G25: =IF(C25<>"",ColTime(C25,D25,T!$D$2,T!$F$2)-E25,"") ->  | H25: =IF(C25<>"",ColTime(C25,D25,T!$D$3,T!$F$3),"") ->  | I25: =IF(C25<>"",ColTime(C25,D25,T!$D$4,T!$F$4),"") ->  | J25: =IF(C25="","",IF(F25>T!$D$9,T!$E$8, IF(F25>T!$D$10, F25-T!$D$10, 0))) ->  | K25: =IF(C25="","",IF(F25>T!$D$9, F25-T!$D$9, 0)) ->  | M25: A-indkomst | O25: =+O23+O24 -> 1765.511292
A26: mandag | B26: 2023-11-13 | E26: =IF(C26="","",T!$D$5) ->  | G26: =IF(C26<>"",ColTime(C26,D26,T!$D$2,T!$F$2)-E26,"") ->  | H26: =IF(C26<>"",ColTime(C26,D26,T!$D$3,T!$F$3),"") ->  | I26: =IF(C26<>"",ColTime(C26,D26,T!$D$4,T!$F$4),"") ->  | J26: =IF(C26="","",IF(F26>T!$D$9,T!$E$8, IF(F26>T!$D$10, F26-T!$D$10, 0))) ->  | K26: =IF(C26="","",IF(F26>T!$D$9, F26-T!$D$9, 0)) ->  | M26: Skattefradrag | O26: =+((O17*0.0328)*4)*0.75 -> 766.1424
A27: tirsdag | B27: 2023-11-14 | E27: =IF(C27="","",T!$D$5) ->  | G27: =IF(C27<>"",ColTime(C27,D27,T!$D$2,T!$F$2)-E27,"") ->  | H27: =IF(C27<>"",ColTime(C27,D27,T!$D$3,T!$F$3),"") ->  | I27: =IF(C27<>"",ColTime(C27,D27,T!$D$4,T!$F$4),"") ->  | J27: =IF(C27="","",IF(F27>T!$D$9,T!$E$8, IF(F27>T!$D$10, F27-T!$D$10, 0))) ->  | K27: =IF(C27="","",IF(F27>T!$D$9, F27-T!$D$9, 0)) ->  | M27: =+M19 -> 0.38 | N27: A-skat | O27: =IF(O25<=0,0,-ROUND((O25-P25)*M27,0)) -> -671
A28: onsdag | B28: 2023-11-15 | E28: =IF(C28="","",T!$D$5) ->  | G28: =IF(C28<>"",ColTime(C28,D28,T!$D$2,T!$F$2)-E28,"") ->  | H28: =IF(C28<>"",ColTime(C28,D28,T!$D$3,T!$F$3),"") ->  | I28: =IF(C28<>"",ColTime(C28,D28,T!$D$4,T!$F$4),"") ->  | J28: =IF(C28="","",IF(F28>T!$D$9,T!$E$8, IF(F28>T!$D$10, F28-T!$D$10, 0))) ->  | K28: =IF(C28="","",IF(F28>T!$D$9, F28-T!$D$9, 0)) ->  | M28: Nettoferiepenge | O28: =+O25+O27 -> 1094.511292
A29: torsdag | B29: 2023-11-16 | E29: =IF(C29="","",T!$D$5) ->  | G29: =IF(C29<>"",ColTime(C29,D29,T!$D$2,T!$F$2)-E29,"") ->  | H29: =IF(C29<>"",ColTime(C29,D29,T!$D$3,T!$F$3),"") ->  | I29: =IF(C29<>"",ColTime(C29,D29,T!$D$4,T!$F$4),"") ->  | J29: =IF(C29="","",IF(F29>T!$D$9,T!$E$8, IF(F29>T!$D$10, F29-T!$D$10, 0))) ->  | K29: =IF(C29="","",IF(F29>T!$D$9, F29-T!$D$9, 0)) -> 
A30: fredag | B30: 2023-11-17 | E30: =IF(C30="","",T!$D$5) ->  | G30: =IF(C30<>"",ColTime(C30,D30,T!$D$2,T!$F$2)-E30,"") ->  | H30: =IF(C30<>"",ColTime(C30,D30,T!$D$3,T!$F$3),"") ->  | I30: =IF(C30<>"",ColTime(C30,D30,T!$D$4,T!$F$4),"") ->  | J30: =IF(C30="","",IF(F30>T!$D$9,T!$E$8, IF(F30>T!$D$10, F30-T!$D$10, 0))) ->  | K30: =IF(C30="","",IF(F30>T!$D$9, F30-T!$D$9, 0)) ->  | N30: År til dato
A31: lørdag | B31: 2023-11-18 | E31: =IF(C31="","",T!$D$5) ->  | G31: =IF(C31<>"",ColTime(C31,D31,T!$D$2,T!$F$2)-E31,"") ->  | H31: =IF(C31<>"",ColTime(C31,D31,T!$D$3,T!$F$3),"") ->  | I31: =IF(C31<>"",ColTime(C31,D31,T!$D$4,T!$F$4),"") ->  | J31: =IF(C31="","",IF(F31>T!$D$9,T!$E$8, IF(F31>T!$D$10, F31-T!$D$10, 0))) ->  | K31: =IF(C31="","",IF(F31>T!$D$9, F31-T!$D$9, 0)) -> 
A32: søndag | B32: 2023-11-19 | E32: =IF(C32="","",T!$D$5) ->  | G32: =IF(C32="","",((IF(D32-MAX(C32,(6/24))+(D32<C32)<0,0,D32-MAX(C32,(6/24))+(D32<C32)))-(IF((D32-MAX(C32,(18/24))+(D32<C32))<0,0,(D32-MAX(C32,(18/24))+(D32<C32)))))*24-(E32*24)) ->  | H32: =IF(C32<>"",ColTime(C32,D32,T!$D$3,T!$F$3),"") ->  | I32: =IF(C32<>"",ColTime(C32,D32,T!$D$4,T!$F$4),"") ->  | J32: =IF(C32="","",IF(F32>T!$D$9,T!$E$8, IF(F32>T!$D$10, F32-T!$D$10, 0))) ->  | K32: =IF(C32="","",IF(F32>T!$D$9, F32-T!$D$9, 0)) ->  | N32: Arbejdstimer i alt | P32: ='[1]sep-okt'!P32:Q32+'[1]okt-nov'!O3 -> 292.4166667 | S32: A-skat | U32: =-S19-O27 -> 3045
A33: Total Timer | E33: =SUM(E2:E32) -> 0.2083333333 | F33: =SUM(F2:F32) -> 3.790277778 | G33: =SUM(G2:G32) -> 2.515972222 | H33: 0.8652777778 | I33: =SUM(I2:I32) -> 0.2006944444 | J33: =SUM(J2:J32) -> 0.4548611111 | K33: =SUM(K2:K32) -> 0.2423611111 | N33: AM-bidragsgrundlag | P33: =+T11+O23 -> 17171.95163 | S33: AM-bidrag | U33: =-S13-O24 -> 1373
A34: Timer 1/100 | E34: =E33*24 -> 5 | F34: =F33*24 -> 90.96666667 | G34: =G33*24 -> 60.38333333 | H34: 20.76666667 | I34: 4.816666667 | J34: 10.91666667 | K34: 5.816666667 | N34: Feriepengegrundlag | P34: =+T3 -> 13616.80033 | S34: Feriepenge, brutto | U34: =+O23 -> 1918.511292
N35: ATP-bidrag, lønmodtager | P35: =-S9 -> -94.65 | S35: Feriepenge, netto | U35: =+O28 -> 1094.511292
N36: ATP-bidrag, arbejdsgiver | P36: =IF(O3>500,"",IF(O3>=117,189.35,IF(O3>=78,126.25,IF(O3 >=39,63.1,IF(O3<=38,0,""))))) -> 126.25

Sheet T
B2: Dag tillæg | C2: Fra kl. | D2: 06:00:00 | E2: Til kl. | F2: 18:00:00
B3: Aften tillæg | C3: Fra kl. | D3: 18:00:00 | E3: Til kl. | F3: 22:00:00
B4: Nat tillæg | C4: Fra kl. | D4: 22:00:00 | E4: Til kl. | F4: 06:00:00
B5: Pause | D5: 00:30:00
B6: Grundlovsdag | C6: Fra kl. | D6: 12:00:00 | E6: Til kl. | F6: 00:00:00
D8: 11:30:00 | E8: 02:00:00
D9: 09:30:00
D10: 07:30:00
